[Event "NJSK 2024 AmBm"]
[Site "Groningen, Netherlands"]
[Date "2024.04.28"]
[Round "2.2"]
[White "Feng, Elysia"]
[Black "Westerhof, Fleur"]
[Result "0-1"]
[TimeControl "90min/40moves + 30min + 30sec/move"]
[WhiteElo "1862"]
[BlackElo "1916"]

1. e4 {[%clk 01:30:59]} {[%emt 00:00:01]} e5 {[%clk 01:30:51]} {[%emt
00:00:10]} 2. Nf3 {[%clk 01:31:23]} {[%emt 00:00:05]} Nc6 {[%clk 01:31:11]}
{[%emt 00:00:10]} 3. Bb5 {[%clk 01:31:47]} {[%emt 00:00:05]} a6 {[%clk
01:31:26]} {[%emt 00:00:16]} 4. Ba4 {[%clk 01:32:12]} {[%emt 00:00:05]} Nf6
{[%clk 01:31:17]} {[%emt 00:00:38]} 5. O-O {[%clk 01:32:30]} {[%emt 00:00:12]}
Be7 {[%clk 01:31:22]} {[%emt 00:00:25]} 6. Re1 {[%clk 01:32:53]} {[%emt
00:00:08]} b5 {[%clk 01:31:27]} {[%emt 00:00:25]} 7. Bb3 {[%clk 01:33:15]}
{[%emt 00:00:07]} O-O {[%clk 01:31:23]} {[%emt 00:00:34]} 8. c3 {[%clk
01:33:40]} {[%emt 00:00:06]} d5 {[%clk 01:31:08]} {[%emt 00:00:45]} 9. exd5
{[%clk 01:34:02]} {[%emt 00:00:08]} Nxd5 {[%clk 01:31:25]} {[%emt 00:00:12]} 10.
Nxe5 {[%clk 01:34:24]} {[%emt 00:00:08]} Nxe5 {[%clk 01:31:35]} {[%emt
00:00:21]} 11. Rxe5 {[%clk 01:34:45]} {[%emt 00:00:09]} c6 {[%clk 01:31:55]}
{[%emt 00:00:10]} 12. d4 {[%clk 01:35:09]} {[%emt 00:00:05]} Bd6 {[%clk
01:31:55]} {[%emt 00:00:30]} 13. Re1 {[%clk 01:35:26]} {[%emt 00:00:13]} Qh4
{[%clk 01:32:06]} {[%emt 00:00:20]} 14. g3 {[%clk 01:35:47]} {[%emt 00:00:09]}
Qh3 {[%clk 01:32:08]} {[%emt 00:00:27]} 15. Qe2 {[%clk 01:35:53]} {[%emt
00:00:23]} Ra7 {[%clk 01:17:38]} {[%emt 00:15:02]} 16. Qf1 {[%clk 01:26:46]}
{[%emt 00:09:36]} Qh5 {[%clk 01:15:05]} {[%emt 00:03:03]} 17. f3 {[%clk
01:27:03]} {[%emt 00:00:13]} Bh3 {[%clk 01:11:00]} {[%emt 00:04:35]} 18. Qf2
{[%clk 01:27:27]} {[%emt 00:00:07]} f5 {[%clk 01:07:50]} {[%emt 00:03:40]} 19.
Nd2 {[%clk 01:22:08]} {[%emt 00:05:49]} Re8 {[%clk 01:01:27]} {[%emt 00:06:52]}
20. Ne4 {[%clk 00:42:25]} {[%emt 00:40:14]} fxe4 {[%clk 00:56:00]} {[%emt
00:05:56]} 21. fxe4 {[%clk 00:42:48]} {[%emt 00:00:07]} Rf7 {[%clk 00:54:12]}
{[%emt 00:02:17]} 22. Bf4 {[%clk 00:42:57]} {[%emt 00:00:21]} Bxf4 {[%clk
00:48:30]} {[%emt 00:06:12]} 23. gxf4 {[%clk 00:41:15]} {[%emt 00:02:13]} Rf6
{[%clk 00:45:22]} {[%emt 00:03:38]} 24. f5 {[%clk 00:36:29]} {[%emt 00:05:16]}
Qg4+ {[%clk 00:44:34]} {[%emt 00:01:17]} 25. Qg3 {[%clk 00:36:00]} {[%emt
00:00:59]} Rxe4 {[%clk 00:38:41]} {[%emt 00:06:24]} 26. Rxe4 {[%clk 00:36:10]}
{[%emt 00:00:20]} Qxf5 {[%clk 00:34:42]} {[%emt 00:04:28]} 27. Re8+ {[%clk
00:17:10]} {[%emt 00:19:31]} Kf7 {[%clk 00:33:21]} {[%emt 00:01:50]} 28. Qc7+
{[%clk 00:17:19]} {[%emt 00:00:20]} Kxe8 {[%clk 00:28:39]} {[%emt 00:05:13]} 29.
Re1+ {[%clk 00:17:32]} {[%emt 00:00:18]} Re6 {[%clk 00:28:20]} {[%emt
00:00:48]} 30. Qxc6+ {[%clk 00:15:48]} {[%emt 00:02:15]} Ke7 {[%clk 00:25:17]}
{[%emt 00:03:33]} 31. Rxe6+ {[%clk 00:04:17]} {[%emt 00:12:01]} Qxe6 {[%clk
00:25:13]} {[%emt 00:00:34]} 32. Qc5+ {[%clk 00:04:13]} {[%emt 00:00:35]} Kf6
{[%clk 00:23:55]} {[%emt 00:01:47]} 33. Qf8+ {[%clk 00:04:31]} {[%emt
00:00:12]} Kg6 {[%clk 00:23:44]} {[%emt 00:00:39]} 34. Qf2 {[%clk 00:03:23]}
{[%emt 00:01:39]} Qg4+ {[%clk 00:23:26]} {[%emt 00:00:48]} 35. Kh1 {[%clk
00:03:41]} {[%emt 00:00:13]} Qe4+ {[%clk 00:23:39]} {[%emt 00:00:17]} 36. Kg1
{[%clk 00:04:02]} {[%emt 00:00:09]} Qb1+ {[%clk 00:23:57]} {[%emt 00:00:12]} 37.
Qf1 {[%clk 00:04:25]} {[%emt 00:00:07]} Qxf1# {[%clk 00:24:20]} 0-1

[Event "NJSK 2024 AmBm"]
[Site "Groningen, Netherlands"]
[Date "2024.04.28"]
[Round "2.3"]
[White "Damen, Josephine"]
[Black "Tangarife Ramirez, Katja"]
[Result "0-1"]
[TimeControl "90min/40moves + 30min + 30sec/move"]
[WhiteElo "1890"]
[BlackElo "1742"]

1. e4 {[%clk 01:30:56]} {[%emt 00:00:03]} c6 {[%clk 01:30:57]} {[%emt
00:00:04]} 2. d4 {[%clk 01:31:22]} {[%emt 00:00:04]} d5 {[%clk 01:31:24]}
{[%emt 00:00:02]} 3. exd5 {[%clk 01:31:34]} {[%emt 00:00:18]} cxd5 {[%clk
01:31:49]} {[%emt 00:00:06]} 4. c4 {[%clk 01:31:58]} {[%emt 00:00:06]} Nf6
{[%clk 01:32:14]} {[%emt 00:00:05]} 5. Nc3 {[%clk 01:32:13]} {[%emt 00:00:14]}
Nc6 {[%clk 01:32:39]} {[%emt 00:00:05]} 6. Nf3 {[%clk 01:32:32]} {[%emt
00:00:11]} a6 {[%clk 01:33:04]} {[%emt 00:00:07]} 7. Be3 {[%clk 01:27:41]}
{[%emt 00:05:20]} g6 {[%clk 01:32:35]} {[%emt 00:00:59]} 8. Be2 {[%clk
01:23:54]} {[%emt 00:04:16]} Bg7 {[%clk 01:32:45]} {[%emt 00:00:20]} 9. O-O
{[%clk 01:20:31]} {[%emt 00:03:53]} O-O {[%clk 01:31:58]} {[%emt 00:01:18]} 10.
Rc1 {[%clk 01:17:44]} {[%emt 00:03:17]} Bg4 {[%clk 01:23:11]} {[%emt 00:09:17]}
11. cxd5 {[%clk 01:06:48]} {[%emt 00:11:26]} Nxd5 {[%clk 01:23:13]} {[%emt
00:00:28]} 12. h3 {[%clk 01:06:18]} {[%emt 00:01:00]} Nxc3 {[%clk 01:07:04]}
{[%emt 00:16:39]} 13. bxc3 {[%clk 01:05:10]} {[%emt 00:01:38]} Bxf3 {[%clk
01:06:37]} {[%emt 00:00:57]} 14. Bxf3 {[%clk 01:05:03]} {[%emt 00:00:37]} e6
{[%clk 01:04:23]} {[%emt 00:02:43]} 15. Rb1 {[%clk 01:00:10]} {[%emt 00:05:23]}
Qc7 {[%clk 01:00:10]} {[%emt 00:04:44]} 16. Qd2 {[%clk 00:53:57]} {[%emt
00:06:43]} Rfd8 {[%clk 00:57:03]} {[%emt 00:03:37]} 17. Qb2 {[%clk 00:34:03]}
{[%emt 00:20:25]} b5 {[%clk 00:51:44]} {[%emt 00:05:49]} 18. g3 {[%clk
00:29:32]} {[%emt 00:05:00]} Rac8 {[%clk 00:48:34]} {[%emt 00:03:40]} 19. Qa3
{[%clk 00:25:58]} {[%emt 00:04:04]} Na5 {[%clk 00:43:25]} {[%emt 00:05:39]} 20.
Rfc1 {[%clk 00:23:33]} {[%emt 00:02:55]} Nc4 {[%clk 00:39:11]} {[%emt
00:04:45]} 21. Qxa6 {[%clk 00:18:52]} {[%emt 00:05:11]} Nxe3 {[%clk 00:39:16]}
{[%emt 00:00:24]} 22. Kh2 {[%clk 00:15:22]} {[%emt 00:04:01]} Nd5 {[%clk
00:34:47]} {[%emt 00:04:59]} 23. c4 {[%clk 00:11:27]} {[%emt 00:04:25]} bxc4
{[%clk 00:32:28]} {[%emt 00:02:48]} 24. Rb7 {[%clk 00:11:05]} {[%emt 00:00:52]}
Qc6 {[%clk 00:29:49]} {[%emt 00:03:09]} 25. Qa7 {[%clk 00:07:19]} {[%emt
00:04:16]} Ra8 {[%clk 00:28:01]} {[%emt 00:02:18]} 26. Bxd5 {[%clk 00:07:02]}
{[%emt 00:00:47]} exd5 {[%clk 00:27:40]} {[%emt 00:00:50]} 0-1

[Event "NJSK 2024 AmBm"]
[Site "Groningen, Netherlands"]
[Date "2024.04.28"]
[Round "2.4"]
[White "Knobbe, Elise"]
[Black "Gergin, Isafara"]
[Result "1/2-1/2"]
[TimeControl "90min/40moves + 30min + 30sec/move"]
[WhiteElo "1785"]
[BlackElo "1888"]

1. e4 {[%clk 01:30:56]} {[%emt 00:00:03]} c6 {[%clk 01:30:22]} {[%emt
00:00:39]} 2. d4 {[%clk 01:31:16]} {[%emt 00:00:10]} d5 {[%clk 01:30:47]}
{[%emt 00:00:05]} 3. Bd3 {[%clk 01:31:40]} {[%emt 00:00:05]} dxe4 {[%clk
01:30:01]} {[%emt 00:01:16]} 4. Bxe4 {[%clk 01:32:04]} {[%emt 00:00:06]} Nf6
{[%clk 01:29:53]} {[%emt 00:00:38]} 5. Bf3 {[%clk 01:32:24]} {[%emt 00:00:10]}
Bf5 {[%clk 01:28:50]} {[%emt 00:01:33]} 6. Ne2 {[%clk 01:28:40]} {[%emt
00:04:14]} e6 {[%clk 01:26:26]} {[%emt 00:02:55]} 7. c3 {[%clk 01:27:28]}
{[%emt 00:01:41]} Bd6 {[%clk 01:25:19]} {[%emt 00:01:37]} 8. Bf4 {[%clk
01:24:48]} {[%emt 00:03:10]} Qc7 {[%clk 01:24:11]} {[%emt 00:01:37]} 9. Bxd6
{[%clk 01:23:44]} {[%emt 00:01:35]} Qxd6 {[%clk 01:24:30]} {[%emt 00:00:11]} 10.
Ng3 {[%clk 01:23:16]} {[%emt 00:00:57]} Bg6 {[%clk 01:23:17]} {[%emt 00:01:43]}
11. O-O {[%clk 01:22:32]} {[%emt 00:01:15]} Nbd7 {[%clk 01:22:10]} {[%emt
00:01:37]} 12. Nd2 {[%clk 01:21:30]} {[%emt 00:01:32]} O-O {[%clk 01:18:04]}
{[%emt 00:04:37]} 13. Re1 {[%clk 01:18:04]} {[%emt 00:03:55]} b5 {[%clk
01:12:08]} {[%emt 00:06:26]} 14. Nde4 {[%clk 01:07:14]} {[%emt 00:11:20]} Qc7
{[%clk 01:10:27]} {[%emt 00:02:11]} 15. Qe2 {[%clk 01:04:47]} {[%emt 00:02:57]}
Rab8 {[%clk 01:08:42]} {[%emt 00:02:15]} 16. Rac1 {[%clk 00:57:12]} {[%emt
00:08:05]} a5 {[%clk 01:04:31]} {[%emt 00:04:41]} 17. b3 {[%clk 00:48:58]}
{[%emt 00:08:44]} Rfd8 {[%clk 00:55:35]} {[%emt 00:09:26]} 18. Red1 {[%clk
00:47:32]} {[%emt 00:01:55]} Nxe4 {[%clk 00:44:10]} {[%emt 00:11:56]} 19. Nxe4
{[%clk 00:45:56]} {[%emt 00:02:06]} Nb6 {[%clk 00:39:39]} {[%emt 00:05:01]} 20.
Nc5 {[%clk 00:42:10]} {[%emt 00:04:16]} Qd6 {[%clk 00:35:50]} {[%emt 00:04:18]}
21. Nd3 {[%clk 00:39:01]} {[%emt 00:03:39]} Bxd3 {[%clk 00:33:57]} {[%emt
00:02:24]} 22. Qxd3 {[%clk 00:37:39]} {[%emt 00:01:51]} Nd5 {[%clk 00:22:19]}
{[%emt 00:12:09]} 23. Qd2 {[%clk 00:30:45]} {[%emt 00:07:23]} Nf6 {[%clk
00:20:22]} {[%emt 00:02:27]} 24. c4 {[%clk 00:24:11]} {[%emt 00:07:05]} b4
{[%clk 00:19:43]} {[%emt 00:01:09]} 25. Qg5 {[%clk 00:22:56]} {[%emt 00:01:45]}
Ra8 {[%clk 00:14:39]} {[%emt 00:05:35]} 26. Qc5 {[%clk 00:17:21]} {[%emt
00:06:03]} Ra6 {[%clk 00:05:19]} {[%emt 00:09:51]} 1/2-1/2

[Event "NJSK 2024 AmBm"]
[Site "Groningen, Netherlands"]
[Date "2024.04.28"]
[Round "2.5"]
[White "Oostinga, Elisa"]
[Black "Hagen, Carlijn"]
[Result "1-0"]
[TimeControl "90min/40moves + 30min + 30sec/move"]
[WhiteElo "1713"]
[BlackElo "1705"]

1. e4 {[%clk 01:30:57]} {[%emt 00:00:02]} e5 {[%clk 01:30:55]} {[%emt
00:00:07]} 2. Nf3 {[%clk 01:31:19]} {[%emt 00:00:07]} Nc6 {[%clk 01:31:15]}
{[%emt 00:00:11]} 3. d4 {[%clk 01:31:34]} {[%emt 00:00:14]} exd4 {[%clk
01:31:36]} {[%emt 00:00:10]} 4. Nxd4 {[%clk 01:31:43]} {[%emt 00:00:21]} Qh4
{[%clk 01:30:32]} {[%emt 00:01:34]} 5. Nc3 {[%clk 01:28:35]} {[%emt 00:03:37]}
Bb4 {[%clk 01:30:02]} {[%emt 00:01:00]} 6. Qd3 {[%clk 01:17:42]} {[%emt
00:11:21]} Nf6 {[%clk 01:25:21]} {[%emt 00:05:12]} 7. Nxc6 {[%clk 01:02:52]}
{[%emt 00:15:21]} dxc6 {[%clk 01:24:23]} {[%emt 00:01:28]} 8. Bd2 {[%clk
00:51:20]} {[%emt 00:12:02]} Bxc3 {[%clk 01:02:45]} {[%emt 00:22:08]} 9. Bxc3
{[%clk 00:50:57]} {[%emt 00:00:53]} Qxe4+ {[%clk 01:02:15]} {[%emt 00:01:00]}
10. Qxe4+ {[%clk 00:50:45]} {[%emt 00:00:42]} Nxe4 {[%clk 01:02:39]} {[%emt
00:00:06]} 11. Bxg7 {[%clk 00:49:54]} {[%emt 00:01:21]} Rg8 {[%clk 01:02:44]}
{[%emt 00:00:25]} 12. Be5 {[%clk 00:48:49]} {[%emt 00:01:34]} Nd6 {[%clk
01:01:26]} {[%emt 00:01:48]} 13. O-O-O {[%clk 00:44:56]} {[%emt 00:04:23]} Ke7
{[%clk 00:57:50]} {[%emt 00:04:06]} 14. Bd3 {[%clk 00:40:42]} {[%emt 00:04:43]}
h5 {[%emt 00:17:36]} 15. Rhe1 {[%clk 00:36:42]} Be6 {[%clk 00:43:42]} {[%emt
00:02:03]} 16. f4 {[%clk 00:34:50]} {[%emt 00:02:21]} Kd7 {[%clk 00:35:40]}
{[%emt 00:08:32]} 17. c4 {[%clk 00:30:42]} {[%emt 00:04:39]} c5 {[%clk
00:25:09]} {[%emt 00:10:59]} 18. f5 {[%clk 00:24:27]} {[%emt 00:06:47]} Rxg2
{[%clk 00:18:54]} {[%emt 00:06:45]} 19. fxe6+ {[%clk 00:24:25]} {[%emt
00:00:32]} fxe6 {[%clk 00:19:16]} {[%emt 00:00:08]} 20. Bg3 {[%clk 00:24:01]}
{[%emt 00:00:53]} Rf8 {[%clk 00:16:49]} {[%emt 00:02:57]} 21. Be4 {[%clk
00:22:33]} {[%emt 00:01:58]} Rxg3 {[%clk 00:10:08]} {[%emt 00:07:11]} 22. hxg3
{[%clk 00:22:35]} {[%emt 00:00:28]} 1-0

[Event "NJSK 2024 AmBm"]
[Site "Groningen, Netherlands"]
[Date "2024.04.28"]
[Round "2.6"]
[White "Liu, Chia-Yun"]
[Black "Van Apeldoorn, Vera"]
[Result "1-0"]
[TimeControl "90min/40moves + 30min + 30sec/move"]
[WhiteElo "1704"]
[BlackElo "1601"]

1. e4 {[%clk 01:30:53]} {[%emt 00:00:06]} e5 {[%clk 01:30:56]} {[%emt
00:00:05]} 2. Nf3 {[%clk 01:31:17]} {[%emt 00:00:06]} Nc6 {[%clk 01:31:13]}
{[%emt 00:00:13]} 3. d4 {[%clk 01:31:23]} {[%emt 00:00:24]} exd4 {[%clk
01:29:26]} {[%emt 00:02:17]} 4. Bc4 {[%clk 01:31:30]} {[%emt 00:00:23]} Nf6
{[%clk 01:25:39]} {[%emt 00:04:17]} 5. e5 {[%clk 01:26:24]} {[%emt 00:05:36]}
Ne4 {[%clk 01:21:10]} {[%emt 00:04:59]} 6. Bd5 {[%clk 01:23:51]} {[%emt
00:03:03]} Nc5 {[%clk 01:18:23]} {[%emt 00:03:17]} 7. Ng5 {[%clk 01:06:17]}
{[%emt 00:18:03]} Ne6 {[%clk 01:12:19]} {[%emt 00:06:34]} 8. Nxe6 {[%clk
00:55:56]} {[%emt 00:10:51]} dxe6 {[%clk 01:05:27]} {[%emt 00:07:22]} 9. Bxc6+
{[%clk 00:55:34]} {[%emt 00:00:52]} bxc6 {[%clk 01:04:25]} {[%emt 00:01:33]} 10.
O-O {[%clk 00:51:42]} {[%emt 00:04:21]} Be7 {[%clk 01:02:57]} {[%emt 00:01:58]}
11. Qg4 {[%clk 00:45:35]} {[%emt 00:06:37]} g6 {[%clk 00:55:45]} {[%emt
00:07:42]} 12. Bh6 {[%clk 00:42:45]} {[%emt 00:03:21]} Bf8 {[%clk 00:50:19]}
{[%emt 00:05:56]} 13. Bxf8 {[%clk 00:41:15]} {[%emt 00:02:00]} Kxf8 {[%clk
00:49:30]} {[%emt 00:01:20]} 14. Nd2 {[%clk 00:38:46]} {[%emt 00:02:58]} Kg7
{[%clk 00:41:10]} {[%emt 00:08:50]} 15. Ne4 {[%clk 00:32:40]} {[%emt 00:06:35]}
Bb7 {[%clk 00:37:13]} {[%emt 00:04:28]} 16. Nf6 {[%clk 00:30:05]} {[%emt
00:03:04]} c5 {[%clk 00:35:36]} {[%emt 00:02:08]} 17. f4 {[%clk 00:23:31]}
{[%emt 00:07:04]} Qc8 {[%clk 00:32:24]} {[%emt 00:03:42]} 18. h4 {[%clk
00:20:32]} {[%emt 00:03:29]} h5 {[%clk 00:28:36]} {[%emt 00:04:18]} 19. Qg5
{[%clk 00:20:21]} {[%emt 00:00:42]} Rb8 {[%clk 00:26:22]} {[%emt 00:02:44]} 20.
g4 {[%clk 00:16:48]} {[%emt 00:04:02]} Kf8 {[%clk 00:21:35]} {[%emt 00:05:17]}
21. f5 {[%clk 00:15:29]} {[%emt 00:01:49]} exf5 {[%clk 00:18:11]} {[%emt
00:03:54]} 22. gxf5 {[%clk 00:15:19]} {[%emt 00:00:40]} gxf5 {[%clk 00:17:53]}
{[%emt 00:00:48]} 23. Rxf5 {[%clk 00:15:22]} {[%emt 00:00:26]} Qe6 {[%clk
00:15:04]} {[%emt 00:03:20]} 24. Raf1 {[%clk 00:14:24]} {[%emt 00:01:28]} Bd5
{[%clk 00:09:21]} {[%emt 00:06:13]} 25. Nxd5 {[%clk 00:11:23]} {[%emt
00:03:31]} Rg8 {[%clk 00:06:43]} {[%emt 00:03:08]} 26. Qxg8+ {[%clk 00:10:13]}
{[%emt 00:01:39]} Kxg8 {[%clk 00:05:46]} {[%emt 00:01:27]} 27. Rg5+ {[%clk
00:09:28]} {[%emt 00:01:15]} Kf8 {[%clk 00:04:01]} {[%emt 00:02:16]} 28. Nf6
{[%clk 00:09:21]} {[%emt 00:00:37]} Ke7 {[%clk 00:03:16]} {[%emt 00:01:15]} 29.
Rxh5 {[%clk 00:07:18]} {[%emt 00:02:33]} Qh3 {[%clk 00:02:26]} {[%emt
00:01:20]} 30. Nd5+ {[%clk 00:05:07]} {[%emt 00:02:41]} Ke6 {[%clk 00:02:10]}
{[%emt 00:00:46]} 31. Nf4+ {[%clk 00:05:26]} {[%emt 00:00:11]} Ke7 {[%clk
00:02:07]} {[%emt 00:00:34]} 32. Nxh3 {[%clk 00:05:48]} {[%emt 00:00:06]} Rxb2
{[%clk 00:02:12]} {[%emt 00:00:25]} 33. Rf2 {[%clk 00:05:14]} {[%emt 00:01:05]}
Rxa2 {[%clk 00:02:19]} {[%emt 00:00:23]} 34. Rhf5 {[%clk 00:05:29]} {[%emt
00:00:15]} Ra3 {[%clk 00:02:20]} {[%emt 00:00:28]} 35. Rxf7+ {[%clk 00:05:36]}
{[%emt 00:00:23]} Ke6 {[%clk 00:02:36]} {[%emt 00:00:15]} 36. Ng5+ {[%clk
00:05:56]} {[%emt 00:00:10]} Kxe5 {[%clk 00:02:46]} {[%emt 00:00:21]} 37. h5
{[%clk 00:05:45]} {[%emt 00:00:40]} Rg3+ {[%clk 00:02:47]} {[%emt 00:00:29]} 38.
Rg2 {[%clk 00:06:01]} {[%emt 00:00:14]} Ra3 {[%clk 00:02:34]} {[%emt 00:00:43]}
39. h6 {[%clk 00:06:09]} {[%emt 00:00:21]} Ra6 {[%clk 00:02:48]} {[%emt
00:00:16]} 40. h7 {[%clk 00:06:11]} {[%emt 00:00:29]} Rh6 {[%clk 00:03:04]}
{[%emt 00:00:15]} 41. Rf8 {[%clk 00:05:54]} {[%emt 00:00:46]} a5 {[%clk
00:03:15]} {[%emt 00:00:20]} 42. h8=Q+ {[%clk 00:06:14]} {[%emt 00:00:09]} Rxh8
{[%clk 00:03:41]} {[%emt 00:00:04]} 43. Rxh8 {[%clk 00:06:36]} {[%emt
00:00:08]} a4 {[%clk 00:04:07]} {[%emt 00:00:05]} 44. Ra8 {[%clk 00:06:58]}
{[%emt 00:00:06]} c4 {[%clk 00:04:23]} {[%emt 00:00:14]} 45. Rxa4 {[%clk
00:07:21]} {[%emt 00:00:07]} Kd5 {[%clk 00:04:46]} {[%emt 00:00:08]} 46. Rd2
{[%clk 00:07:23]} {[%emt 00:00:28]} c5 {[%clk 00:05:04]} {[%emt 00:00:18]} 47.
Ra5 {[%clk 00:06:51]} {[%emt 00:00:57]} c3 {[%clk 00:05:19]} {[%emt 00:00:15]}
48. Rd1 {[%clk 00:07:03]} {[%emt 00:00:17]} Kc4 {[%clk 00:05:22]} {[%emt
00:00:28]} 49. Ne6 {[%clk 00:07:20]} {[%emt 00:00:13]} Kb4 {[%clk 00:05:20]}
{[%emt 00:00:32]} 50. Rxc5 {[%clk 00:07:37]} {[%emt 00:00:13]} d3 {[%clk
00:05:31]} {[%emt 00:00:19]} 51. Rxd3 {[%clk 00:07:46]} {[%emt 00:00:21]} Ka4
{[%clk 00:05:51]} {[%emt 00:00:11]} 52. Rd8 {[%clk 00:06:54]} {[%emt 00:01:21]}
Ka3 {[%clk 00:06:00]} {[%emt 00:00:21]} 53. Rb8 {[%clk 00:07:06]} {[%emt
00:00:18]} Ka4 {[%clk 00:06:27]} {[%emt 00:00:04]} 54. Rc7 {[%clk 00:07:28]}
{[%emt 00:00:07]} Ka3 {[%clk 00:06:53]} {[%emt 00:00:04]} 55. Ra7# {[%clk
00:07:52]} {[%emt 00:00:06]} 1-0

[Event "NJSK 2024 AmBm"]
[Site "Groningen, Netherlands"]
[Date "2024.04.28"]
[Round "2.7"]
[White "Woldhuis, Thera"]
[Black "Luijkx, Dagmar"]
[Result "0-1"]
[TimeControl "90min/40moves + 30min + 30sec/move"]
[WhiteElo "1662"]
[BlackElo "1701"]

1. e4 {[%clk 01:30:59]} {[%emt 00:00:01]} e6 {[%clk 01:30:56]} {[%emt
00:00:04]} 2. d4 {[%clk 01:31:25]} {[%emt 00:00:04]} d5 {[%clk 01:31:23]}
{[%emt 00:00:04]} 3. e5 {[%clk 01:31:50]} {[%emt 00:00:05]} c5 {[%clk
01:31:50]} {[%emt 00:00:03]} 4. c3 {[%clk 01:32:01]} {[%emt 00:00:18]} Nc6
{[%clk 01:32:06]} {[%emt 00:00:13]} 5. Nf3 {[%clk 01:32:28]} {[%emt 00:00:04]}
Qb6 {[%clk 01:32:16]} {[%emt 00:00:20]} 6. Bd3 {[%clk 01:32:52]} {[%emt
00:00:06]} Bd7 {[%clk 01:32:37]} {[%emt 00:00:09]} 7. O-O {[%clk 01:33:12]}
{[%emt 00:00:10]} cxd4 {[%clk 01:32:13]} {[%emt 00:00:54]} 8. cxd4 {[%clk
01:33:32]} {[%emt 00:00:10]} Nxd4 {[%clk 01:32:05]} {[%emt 00:00:38]} 9. Nxd4
{[%clk 01:33:55]} {[%emt 00:00:06]} Qxd4 {[%clk 01:32:29]} {[%emt 00:00:07]} 10.
Nc3 {[%clk 01:34:23]} {[%emt 00:00:03]} Qxe5 {[%clk 01:29:45]} {[%emt
00:03:13]} 11. Re1 {[%clk 01:34:44]} {[%emt 00:00:09]} Qd6 {[%clk 01:25:07]}
{[%emt 00:05:07]} 12. Nb5 {[%clk 01:35:00]} {[%emt 00:00:15]} Qb8 {[%clk
01:18:46]} {[%emt 00:06:50]} 13. Bg5 {[%clk 01:32:10]} {[%emt 00:03:21]} a6
{[%clk 01:12:47]} {[%emt 00:06:30]} 14. Nc3 {[%clk 01:32:13]} {[%emt 00:00:26]}
Be7 {[%clk 01:10:19]} {[%emt 00:02:59]} 15. Bxe7 {[%clk 01:31:57]} {[%emt
00:00:45]} Nxe7 {[%clk 01:10:30]} {[%emt 00:00:18]} 16. Qh5 {[%clk 01:32:12]}
{[%emt 00:00:16]} Qd6 {[%clk 00:58:18]} {[%emt 00:12:42]} 17. Rad1 {[%clk
01:31:30]} {[%emt 00:01:12]} h6 {[%clk 00:55:13]} {[%emt 00:03:36]} 18. Re3
{[%clk 01:29:37]} {[%emt 00:02:22]} O-O {[%clk 00:46:03]} {[%emt 00:09:40]} 19.
Rg3 {[%clk 01:28:52]} {[%emt 00:01:15]} e5 {[%clk 00:39:06]} {[%emt 00:07:28]}
20. Bc2 {[%clk 01:28:02]} {[%emt 00:01:20]} Bc6 {[%clk 00:36:11]} {[%emt
00:03:24]} 21. Ne4 {[%clk 01:26:41]} {[%emt 00:01:50]} Qe6 {[%clk 00:35:04]}
{[%emt 00:01:38]} 22. Ng5 {[%clk 01:27:04]} {[%emt 00:00:07]} Qf6 {[%clk
00:33:40]} {[%emt 00:01:54]} 23. Nh7 {[%clk 01:27:01]} {[%emt 00:00:33]} Qe6
{[%clk 00:32:25]} {[%emt 00:01:46]} 24. Nxf8 {[%clk 01:27:12]} {[%emt
00:00:19]} Rxf8 {[%clk 00:32:13]} {[%emt 00:00:42]} 25. Re1 {[%clk 01:26:48]}
{[%emt 00:00:54]} e4 {[%clk 00:30:08]} {[%emt 00:02:35]} 26. Rg4 {[%clk
01:24:19]} {[%emt 00:02:59]} Bd7 {[%clk 00:29:01]} {[%emt 00:01:37]} 27. Rg3
{[%clk 01:22:41]} {[%emt 00:02:08]} Nf5 {[%clk 00:28:10]} {[%emt 00:01:21]} 28.
Rh3 {[%clk 01:19:54]} {[%emt 00:03:17]} Qc6 {[%clk 00:26:20]} {[%emt 00:02:20]}
29. Rc3 {[%clk 01:19:45]} {[%emt 00:00:39]} Qe6 {[%clk 00:24:34]} {[%emt
00:02:16]} 30. Kh1 {[%clk 01:18:35]} {[%emt 00:01:40]} Qb6 {[%clk 00:22:22]}
{[%emt 00:02:42]} 31. Rb3 {[%clk 01:13:35]} {[%emt 00:05:31]} Qxf2 {[%clk
00:20:35]} {[%emt 00:02:16]} 32. Qd1 {[%clk 01:14:00]} {[%emt 00:00:06]} Rc8
{[%clk 00:18:32]} {[%emt 00:02:33]} 33. Re2 {[%clk 01:13:23]} {[%emt 00:01:06]}
Qh4 {[%clk 00:17:29]} {[%emt 00:01:34]} 34. Rh3 {[%clk 01:11:11]} {[%emt
00:02:41]} Qf4 {[%clk 00:13:50]} {[%emt 00:04:10]} 35. Re1 {[%clk 01:09:13]}
{[%emt 00:02:27]} Bb5 {[%clk 00:11:24]} {[%emt 00:02:57]} 36. Bb3 {[%clk
01:08:21]} {[%emt 00:01:22]} d4 {[%clk 00:07:28]} {[%emt 00:04:26]} 37. a4
{[%clk 01:08:05]} {[%emt 00:00:46]} Bd3 {[%clk 00:07:22]} {[%emt 00:00:36]} 38.
Qh5 {[%clk 01:06:57]} {[%emt 00:01:37]} Qf2 {[%clk 00:06:09]} {[%emt 00:01:44]}
39. Rg1 {[%clk 01:05:22]} {[%emt 00:02:04]} Bc4 {[%clk 00:04:16]} {[%emt
00:02:23]} 40. Bxc4 {[%clk 01:04:09]} {[%emt 00:01:43]} Rxc4 {[%clk 00:04:42]}
{[%emt 00:00:04]} 41. b3 {[%clk 01:04:32]} {[%emt 00:00:08]} Rc2 {[%clk
00:04:29]} {[%emt 00:00:41]} 42. Qg4 {[%clk 01:04:26]} {[%emt 00:00:37]} Re2
{[%clk 00:02:20]} {[%emt 00:02:38]} 43. b4 {[%clk 01:03:46]} {[%emt 00:01:11]}
Re1 {[%clk 00:02:13]} {[%emt 00:00:37]} 44. Qd1 {[%clk 01:04:08]} {[%emt
00:00:08]} Rxd1 {[%clk 00:02:14]} {[%emt 00:00:30]} 45. Rxd1 {[%clk 01:04:34]}
{[%emt 00:00:04]} e3 {[%clk 00:02:03]} {[%emt 00:00:39]} 46. Rf3 {[%clk
01:04:53]} {[%emt 00:00:12]} e2 {[%clk 00:01:13]} {[%emt 00:01:20]} 47. Rg1
{[%clk 01:05:15]} {[%emt 00:00:08]} Qxg1+ {[%clk 00:01:15]} {[%emt 00:00:28]}
48. Kxg1 {[%clk 01:05:43]} {[%emt 00:00:02]} e1=Q+ {[%clk 00:01:30]} {[%emt
00:00:16]} 49. Rf1 {[%clk 01:06:11]} {[%emt 00:00:01]} Qe3+ {[%clk 00:01:39]}
{[%emt 00:00:20]} 50. Rf2 {[%clk 01:06:32]} {[%emt 00:00:10]} d3 {[%clk
00:02:01]} {[%emt 00:00:08]} 51. Kf1 {[%clk 01:06:41]} {[%emt 00:00:21]} Qc1#
{[%clk 00:02:10]} {[%emt 00:00:21]} 0-1